fUSD/lending_fUSD_20250904
["ID","MTS","AMOUNT","RATE_DAILY","PERIOD"]
[383567597,1756995037985,-7064.69106242,0.00021997,2]
[383567598,1756995037995,-5000.0,0.00022,2]
[383567599,1756995038005,-6493.66807305,0.00022,2]
[383567630,1756995039914,-500.0,0.00021917,2]
[383567631,1756995039924,-2788.6160247,0.00022,2]
[383567632,1756995039974,-4638.31968362,0.00022,2]
[383567742,1756995043076,-419.08416783,0.00022,2]
[383567743,1756995043099,-192.86774238,0.00019699,2]
[383567744,1756995043109,-1260.3120508,0.00022,2]
[383567745,1756995043119,-666.10805384,0.00022011,10]
[383567746,1756995043128,-500.0,0.00022046,2]
[383567747,1756995043139,-500.0,0.00022046,2]
[383567748,1756995043148,-500.0,0.00022046,2]
[383567749,1756995043158,-400.0,0.00022072,2]
[383567750,1756995043168,-402.34775627,0.00022072,2]
[383567751,1756995043177,-500.0,0.00022073,2]
[383567752,1756995043187,-257.76,0.00022085,2]
[383567753,1756995043199,-400.0,0.00022094,2]
[383567754,1756995043210,-400.0,0.00022094,2]
[383567755,1756995043220,-400.0,0.00022094,2]
[383567756,1756995043232,-400.0,0.00022094,2]
[383567757,1756995043241,-400.0,0.00022094,2]
[383567758,1756995043251,-400.0,0.00022094,2]
[383567759,1756995043260,-1440.07,0.00022094,2]
[383567760,1756995043270,-400.0,0.00022094,2]
[383567761,1756995043280,-400.0,0.00022094,2]
[383567762,1756995043289,-400.0,0.00022094,2]
[383567763,1756995043299,-400.0,0.00022094,2]
[383567764,1756995043308,-410.55039671,0.00022094,2]
[383567768,1756995043672,-3236.85719898,0.00020305,2]
[383567769,1756995043684,-266.6686,0.00020305,2]
[383567787,1756995045815,-1929.25130908,0.00020305,2]
[383567788,1756995045824,-400.0,0.00021917,2]
[383567789,1756995045832,-1041.45960329,0.00022094,2]
[383567790,1756995045840,-400.0,0.00022094,2]
[383567791,1756995045848,-400.0,0.00022094,2]
[383567792,1756995045857,-518.19,0.00022094,2]
[383567793,1756995045866,-400.0,0.00022094,2]
[383567794,1756995045875,-400.0,0.00022094,2]
[383567795,1756995045883,-400.0,0.00022094,2]
[383567796,1756995045890,-400.0,0.00022094,2]
[383567797,1756995045897,-400.0,0.00022094,2]
[383567798,1756995045905,-204.366023,0.00022094,2]
[383567799,1756995045912,-167.479831,0.00022094,2]
[383567800,1756995045918,-374.56674763,0.00022094,2]
[383567801,1756995045933,-98.83325237,0.00022094,2]
[383567802,1756995045942,-153.494755,0.00022094,2]
[383567803,1756995045952,-400.0,0.00022094,2]
[383567804,1756995045962,-400.0,0.00022094,2]
[383567805,1756995045971,-400.0,0.00022094,2]
[383567806,1756995045983,-520.37,0.00022094,2]
[383567807,1756995045993,-151.927728,0.00022094,2]
[383567808,1756995046003,-400.0,0.00022094,2]
[383567809,1756995046012,-400.0,0.00022094,2]
[383567810,1756995046021,-400.0,0.00022094,2]
[383567811,1756995046030,-500.0,0.00022094,2]
[383567812,1756995046040,-150.0,0.00022095,2]
[383567813,1756995046049,-150.0,0.00022095,2]
[383567814,1756995046058,-400.0,0.00022095,2]
[383567815,1756995046066,-400.0,0.00022095,2]
[383567816,1756995046076,-400.0,0.00022095,2]
[383567817,1756995046086,-176.37426463,0.00022095,2]
[383567818,1756995046098,-240.60113987,0.00022095,2]
[383567819,1756995046107,-400.0,0.00022095,2]
[383567820,1756995046116,-400.0,0.00022095,2]
[383567821,1756995046126,-43.52386014,0.00022095,2]
[383567822,1756995046137,-356.47613986,0.00022095,2]
[383567823,1756995046145,-400.0,0.00022095,2]
[383567824,1756995046154,-400.0,0.00022095,2]
[383567825,1756995046163,-400.0,0.00022095,2]
[383567826,1756995046172,-400.0,0.00022095,2]
[383567827,1756995046182,-404.84435552,0.00022095,2]
[383567828,1756995046191,-400.0,0.00022095,2]
[383567829,1756995046200,-16.70746691,0.00022095,2]
[383567830,1756995046212,-383.29253309,0.00022095,2]
[383567831,1756995046221,-400.0,0.00022095,2]
[383567832,1756995046234,-404.62268979,0.00022095,2]
[383567833,1756995046244,-400.0,0.00022095,2]
[383567834,1756995046253,-400.0,0.00022095,2]
[383567835,1756995046263,-400.0,0.00022095,2]
[383567836,1756995046273,-400.0,0.00022095,2]
[383567837,1756995046283,-400.0,0.00022095,2]
[383567838,1756995046292,-400.0,0.00022095,2]
[383567839,1756995046302,-400.0,0.00022095,2]
[383567840,1756995046311,-400.0,0.00022095,2]
[383567841,1756995046321,-400.0,0.00022095,2]
[383567842,1756995046330,-400.0,0.00022095,2]
[383567843,1756995046339,-400.0,0.00022095,2]
[383567844,1756995046348,-408.54797491,0.00022095,2]
[383567845,1756995046357,-400.0,0.00022095,2]
[383567846,1756995046367,-402.30531758,0.00022095,2]
[383567847,1756995046376,-400.0,0.00022095,2]
[383567849,1756995046388,-400.0,0.00022095,2]
[383567851,1756995046398,-400.0,0.00022095,2]
[383567853,1756995046407,-400.0,0.00022095,2]
[383567855,1756995046416,-405.66405682,0.00022095,2]
[383567857,1756995046427,-400.0,0.00022095,2]
[383567858,1756995046436,-400.0,0.00022095,2]
[383567860,1756995046445,-400.0,0.00022095,2]
[383567862,1756995046454,-400.0,0.00022095,2]
[383567864,1756995046465,-400.0,0.00022095,2]
[383567866,1756995046477,-400.0,0.00022095,2]
[383567868,1756995046486,-500.0,0.00022095,2]
[383567870,1756995046495,-400.0,0.00022095,2]
[383567872,1756995046505,-400.0,0.00022095,2]
[383567875,1756995046515,-403.72098516,0.00022095,2]
[383567877,1756995046525,-400.0,0.00022095,2]
[383567879,1756995046534,-400.0,0.00022095,2]
[383567881,1756995046543,-400.0,0.00022095,2]
[383567882,1756995046553,-400.0,0.00022095,2]
[383567884,1756995046562,-400.0,0.00022095,2]
[383567886,1756995046571,-400.0,0.00022095,2]
[383567888,1756995046583,-400.0,0.00022095,2]
[383567890,1756995046592,-400.0,0.00022095,2]
[383567892,1756995046601,-400.0,0.00022095,2]
[383567894,1756995046611,-400.0,0.00022095,2]
[383567896,1756995046620,-400.0,0.00022095,2]
[383567898,1756995046630,-400.0,0.00022095,2]
[383567900,1756995046640,-400.0,0.00022095,2]
[383567901,1756995046649,-400.0,0.00022095,2]
[383567904,1756995046659,-400.0,0.00022095,2]
[383567905,1756995046669,-400.0,0.00022095,2]
[383567907,1756995046678,-400.0,0.00022095,2]
[383567909,1756995046688,-400.0,0.00022095,2]
[383567911,1756995046696,-400.0,0.00022095,2]
[383567913,1756995046705,-400.0,0.00022095,2]
[383567915,1756995046715,-400.0,0.00022095,2]
[383567917,1756995046724,-400.0,0.00022095,2]
[383567919,1756995046734,-400.0,0.00022095,2]
[383567921,1756995046744,-400.0,0.00022095,2]
[383567923,1756995046753,-400.0,0.00022095,2]
[383567926,1756995046763,-500.0,0.00022095,2]
[383567928,1756995046772,-400.0,0.00022095,2]
[383567930,1756995046782,-400.0,0.00022095,2]
[383567931,1756995046791,-400.0,0.00022095,2]
[383567933,1756995046800,-402.49497347,0.00022095,2]
[383567935,1756995046809,-400.0,0.00022095,2]
[383567937,1756995046819,-400.0,0.00022095,2]
[383567940,1756995046828,-400.0,0.00022095,2]
[383567941,1756995046837,-400.0,0.00022095,2]
[383567943,1756995046846,-400.0,0.00022095,2]
[383567945,1756995046856,-400.0,0.00022095,2]
[383567947,1756995046866,-400.0,0.00022095,2]
[383567949,1756995046875,-400.0,0.00022095,2]
[383567951,1756995046884,-400.0,0.00022095,2]
[383567953,1756995046894,-401.89538201,0.00022095,2]
[383567955,1756995046903,-400.0,0.00022095,2]
[383567957,1756995046912,-400.0,0.00022095,2]
[383567959,1756995046920,-400.0,0.00022095,2]
[383567961,1756995046930,-400.0,0.00022095,2]
[383567963,1756995046939,-400.0,0.00022095,2]
[383567965,1756995046948,-500.0,0.00022095,2]
[383567967,1756995046956,-400.0,0.00022095,2]
[383567969,1756995046965,-400.0,0.00022095,2]
[383567971,1756995046976,-400.0,0.00022095,2]
[383567972,1756995046985,-400.0,0.00022095,2]
[383567973,1756995046995,-400.0,0.00022095,2]
[383567974,1756995047004,-400.42376256,0.00022095,2]
[383567975,1756995047013,-400.0,0.00022095,2]
[383567976,1756995047022,-400.0,0.00022095,2]
[383567977,1756995047203,-400.0,0.00022095,2]
[383567978,1756995047214,-400.0,0.00022095,2]
[383567979,1756995047223,-381.60765794,0.00022095,2]
[383567980,1756995047245,-646.29004,0.00021386,2]
[383567981,1756995047257,-949.611234,0.00021386,2]
[383567982,1756995047280,-1892.12895753,0.00021386,2]
[383567983,1756995138264,225.09067618,0.00030137,120]
[383567995,1756995448137,160.4,0.00016712,2]
[383567997,1756995526017,300.0,0.0003,120]
[383567998,1756995543481,300.0,0.0003,120]
[383567999,1756995552548,300.0,0.0003,120]
[383568000,1756995574870,300.0,0.0003,120]
[383568001,1756995589554,225.8,0.0003,120]
[383568002,1756995743288,403.16,0.00010404,2]
[383568003,1756995743494,49.33614292,0.00010952,2]
[383568004,1756995743519,353.82385708,0.00010952,2]
[383568005,1756995743700,403.16,0.000115,2]
[383568006,1756995744050,403.16,0.00012047,2]
[383568007,1756995744130,275.92743382,0.00012595,2]
[383568008,1756995744153,127.23256618,0.00012595,2]
[383568009,1756995744583,403.16,0.00013143,2]
[383568010,1756995744654,403.16,0.0001369,2]
[383568011,1756995744877,403.16,0.00014238,2]
[383568012,1756995745128,403.16,0.00014785,2]
[383568013,1756995745374,403.16,0.00015333,2]
[383568014,1756995745595,403.16,0.00015881,2]
[383568015,1756995745865,403.16,0.00016428,2]
[383568016,1756995746083,403.16,0.00016976,2]
[383568017,1756995746305,403.16,0.00017523,2]
[383568018,1756995746564,403.16,0.00018071,2]
[383568019,1756995747270,-231.62201359,0.00018619,2]
[383568020,1756995749320,-171.53798641,0.00018619,2]
[383568021,1756995833225,468.36,0.00025808,120]
[383568022,1756995833461,468.36,0.00028389,120]
[383568026,1756995916111,-403.16,0.00019166,2]
[383568027,1756995916142,-1058.84,0.00019492,2]
[383568029,1756995920467,2327.92,9e-05,2]
[383568030,1756995953198,-719.37505185,0.00019393,2]
[383568031,1756995953225,-141.16,0.00019492,2]
[383568032,1756995953250,-391.14668232,0.00019493,2]
[383568033,1756995953275,-256.20406512,0.00019493,2]
[383568034,1756995953305,-168.49238282,0.00019493,2]
[383568035,1756995953330,-500.0,0.00019493,2]
[383568036,1756995953358,-381.5225184,0.00019493,2]
[383568037,1756995953382,-197.87668042,0.00019594,2]
[383568038,1756995953409,-403.16,0.00019714,2]
[383568039,1756995953434,-40653.79587299,0.0002,2]
[383568040,1756995953458,-1280.0,0.0002,15]
[383568041,1756995955779,1031.54670573,0.000199,2]
[383568042,1756995979671,980.0,0.0002,13]
[383568044,1756995996624,220.0,0.000199,2]
[383568046,1756996028733,558.0,0.0002,13]
[383568047,1756996073731,197.2,0.00013699,2]
[383568048,1756996077437,687.58,0.0002,2]
[383568066,1756996232007,-197.87668042,0.00020186,2]
[383568067,1756996232018,-197.2,0.00020187,2]
[383568068,1756996232028,-477.78867979,0.000202,2]
[383568069,1756996232040,-22.21132021,0.000202,2]
[383568070,1756996232050,-697.16373164,0.00020255,2]
[383568071,1756996232062,-502.83626836,0.00020255,2]
[383568072,1756996232071,-300.0,0.00020255,2]
[383568073,1756996232082,-179.34284559,0.00020256,2]
[383568074,1756996232091,-310.49536453,0.00020256,2]
[383568075,1756996232101,-596.98344427,0.00020256,2]
[383568076,1756996232111,-500.0,0.00020256,2]
[383568077,1756996232120,-215.71388952,0.00020256,2]
[383568078,1756996232130,-1651.32,0.00020257,2]
[383568079,1756996232139,-403.16,0.00020262,2]
[383568080,1756996232149,-666.0,0.00020279,3]
[383568081,1756996232158,-1809.66,0.00020287,2]
[383568082,1756996232169,-1000.0,0.00020374,2]
[383568083,1756996232181,-5.66734223,0.00020448,2]
[383568084,1756996232206,-2745.33265777,0.00020448,2]
[383568085,1756996232216,-150.0,0.00020474,2]
[383568086,1756996232225,-856.64,0.00020495,2]
[383568087,1756996232235,-405.0,0.000205,2]
[383568088,1756996232245,-468.36,0.00020646,2]
[383568089,1756996232256,-181.43,0.00020685,2]
[383568090,1756996232266,-5000.0,0.00020695,2]
[383568091,1756996232276,-250.0,0.00020714,2]
[383568092,1756996232285,-403.16,0.00020809,2]
[383568093,1756996232295,-1500.0,0.00020862,2]
[383568094,1756996232305,-206.27,0.0002088,2]
[383568095,1756996232315,-487.06705488,0.000209,2]
[383568096,1756996232324,-160.0,0.00020948,7]
[383568097,1756996232334,-533.0,0.00020972,2]
[383568098,1756996232344,-500.0,0.00020973,2]
[383568099,1756996232354,-113.97536826,0.00020973,2]
[383568101,1756996232373,-386.02463174,0.00020973,2]
[383568102,1756996232383,-500.0,0.00020973,2]
[383568103,1756996232392,-500.0,0.00020973,2]
[383568104,1756996232402,-500.0,0.00020973,2]
[383568105,1756996232415,-500.0,0.00020973,2]
[383568106,1756996232425,-164.7719561,0.00020973,2]
[383568107,1756996232434,-500.0,0.00020973,2]
[383568108,1756996232443,-2902.39966389,0.00021,2]
[383568464,1756996237915,-273.80267762,0.00020254,2]
[383568466,1756996237925,-979.30599584,0.00021,2]
[383568470,1756996238000,-2092.71075627,0.00021,2]
[383568471,1756996238086,-1240.19373616,0.00021,2]
[383568472,1756996238098,-6409.60750386,0.00021,2]
[383568473,1756996238174,-2203.3,0.00021,2]
[383568474,1756996238184,-15859.48029707,0.00021,2]
[383568475,1756996238262,-786.3,0.00021,2]
[383568636,1756996239992,-3783.47750457,0.00021,2]
[383568637,1756996240084,-293.87477162,0.00021,2]
[383568638,1756996240096,-1156.17215268,0.00021,2]
[383568639,1756996240173,-369.47252046,0.00021,2]
[383568640,1756996240186,-5912.57096895,0.00021,2]
[383568641,1756996240200,-764.745945,0.00021,2]
[383568642,1756996240358,-27712.7531006,0.00021,2]
[383568643,1756996240408,-4960.3184998,0.00021,2]
[383568889,1756996243108,-278.43836949,0.00021,2]
[383568890,1756996243358,-20110.1094194,0.00021,2]
[383568896,1756996245988,-2483.826486,0.00021,2]
[383568897,1756996246144,-458.47014067,0.00021,2]
[383568898,1756996246378,-428.70067105,0.00021,2]
[383568899,1756996246420,-1598.05237773,0.00021,2]
[383568903,1756996496900,250.0,0.00015,2]
[383568904,1756996498097,300.0,0.00017,2]
[383568905,1756996677761,219.67,0.00010144,2]
[383568906,1756996678008,219.67,0.00010678,2]
[383568907,1756996678449,219.67,0.00011211,2]
[383568908,1756996678667,219.67,0.00011745,2]
[383568909,1756996678874,219.67,0.00012279,2]
[383568910,1756996679082,219.67,0.00012813,2]
[383568911,1756996679413,219.67,0.00013347,2]
[383568912,1756996679636,219.67,0.00013881,2]
[383568913,1756996679881,219.67,0.00014415,2]
[383568914,1756996680108,219.67,0.00014949,2]
[383568915,1756996680373,219.67,0.00015483,2]
[383568916,1756996680587,219.67,0.00016016,2]
[383568917,1756996680804,219.67,0.0001655,2]
[383568918,1756996681025,219.67,0.00017084,2]
[383568919,1756996681289,219.67,0.00017618,2]
[383568920,1756996681506,219.67,0.00018152,2]
[383568921,1756996681729,219.67,0.00018686,2]
[383568922,1756996681982,219.67,0.0001922,2]
[383568923,1756996682197,219.67,0.00019754,2]
[383568928,1756996799112,288.01274713,0.000301,120]
[383568931,1756996819514,193.21,0.00025613,120]
[383568933,1756996832638,201.0,0.00030137,120]
[383568936,1756996856994,1503.69,0.00030137,120]
[383568942,1756996906238,186.0,0.00029732,120]
[383568953,1756997039773,185.34,0.00013699,2]
[383568954,1756997080192,200.0,0.000301,120]
[383568955,1756997208743,751.5913,0.00019986,2]
[383568956,1756997217156,6908.06082582,0.00019764,2]
[383568957,1756997217414,5000.0,0.0002,2]
[383568964,1756997432411,-166.47344729,0.00020087,2]
[383568965,1756997432421,-186.73428947,0.00020186,2]
[383568966,1756997432433,-190.23788931,0.00020187,2]
[383568967,1756997432442,-7.70437393,0.00020187,2]
[383568968,1756997432455,-177.63562607,0.00020187,2]
[383568969,1756997432466,-250.67437406,0.00020243,2]
[383568970,1756997432476,-3297.26,0.00020244,2]
[383568972,1756997432488,-666.0,0.00020287,3]
[383568973,1756997432497,-219.67,0.00020288,2]
[383568974,1756997432507,-397.0,0.000204,2]
[383568975,1756997432518,-160.0,0.00020405,7]
[383568976,1756997432530,-428.32,0.00020425,2]
[383568977,1756997432540,-318.84,0.00020445,2]
[383568978,1756997432551,-1200.0,0.00020473,2]
[383568979,1756997432561,-2566.45,0.00020474,2]
[383568980,1756997432571,-193.21,0.00020491,2]
[383568981,1756997432581,-158.18954387,0.00020515,2]
[383569114,1756997438476,-32.04834542,0.00020515,2]
[383569115,1756997438487,-200.0,0.00020618,2]
[383569116,1756997438497,-91.06701358,0.00020664,2]
[383569126,1756997443750,-90.36298642,0.00020664,2]
[383569127,1756997443760,-239.84119403,0.00020747,2]
[383569128,1756997443770,-181.08010149,0.00020747,2]
[383569129,1756997443779,-190.23788929,0.00020842,2]
[383569130,1756997443789,-643.0,0.00020899,2]
[383569131,1756997443799,-3035.1853,0.000209,2]
[383569132,1756997443808,-276.5419,0.000209,2]
[383569133,1756997443818,-160.0,0.00020929,2]
[383569134,1756997443827,-151.0,0.00020929,2]
[383569135,1756997443838,-500.0,0.00020929,2]
[383569136,1756997443847,-600.0,0.00020929,2]
[383569137,1756997443857,-600.0,0.00020929,2]
[383569138,1756997443866,-623.58710448,0.00020929,2]
[383569139,1756997443876,-642.3573071,0.00020929,2]
[383569140,1756997443886,-200.0,0.00020929,2]
[383569141,1756997443896,-151.0,0.00020929,2]
[383569142,1756997443905,-151.0,0.00020929,2]
[383569143,1756997443915,-151.0,0.00020929,2]
[383569144,1756997443925,-151.0,0.00020929,2]
[383569145,1756997443935,-322.6107,0.00020929,2]
[383569146,1756997443944,-151.0,0.00020929,2]
[383569147,1756997443954,-151.0,0.00020929,2]
[383569148,1756997443963,-151.0,0.00020929,2]
[383569149,1756997443972,-151.0,0.00020929,2]
[383569151,1756997443983,-151.0,0.00020929,2]
[383569153,1756997443993,-151.0,0.00020929,2]
[383569154,1756997444003,-151.0,0.00020929,2]
[383569155,1756997444012,-151.0,0.00020929,2]
[383569156,1756997444023,-151.0,0.00020929,2]
[383569157,1756997444032,-151.0,0.00020929,2]
[383569158,1756997444042,-151.0,0.00020929,2]
[383569159,1756997444051,-151.0,0.00020929,2]
[383569160,1756997444061,-151.0,0.00020929,2]
[383569161,1756997444070,-24032.1960978,0.00020942,2]
[383569162,1756997444083,-32189.73577032,0.00020942,2]
[383569164,1756997446233,-8974.95114098,0.00020942,2]
[383569165,1756997446243,-6400.50480098,0.00020942,2]
[383569166,1756997446583,-4234.95634722,0.00020942,2]
[383569167,1756997446593,-549.39477046,0.00020973,2]
[383569168,1756997446602,-507.16969835,0.00020979,2]
[383569170,1756997446612,-8914.5259666,0.00021,2]
[383569172,1756997446621,-850.0,0.00021,15]
[383569174,1756997446631,-900.22754792,0.00021,2]
[383569176,1756997446640,-1170.91591973,0.00021,2]
[383569177,1756997446650,-193.27002035,0.00021,2]
[383569179,1756997446659,-1996.0,0.00021,2]
[383569181,1756997446668,-1864.0,0.000211,2]
[383569183,1756997446678,-152.64,0.00021325,2]
[383569186,1756997446688,-151.0,0.00021477,2]
[383569187,1756997446697,-389.0,0.0002158,2]
[383569189,1756997446707,-1265.92906398,0.00021646,15]
[383569192,1756997446717,-165.83,0.00021661,2]
[383569194,1756997446726,-15793.5215316,0.00021756,5]
[383569196,1756997446735,-502.89,0.00021757,2]
[383569198,1756997446745,-299.99,0.00021757,7]
[383569199,1756997446755,-35019.38750193,0.00021757,2]
[383569216,1756997470463,1864.51275501,0.000197,2]
[383569218,1756997651056,2000.0,0.00023181,120]
[383569219,1756997651249,2000.0,0.00021074,120]
[383569220,1756997651452,2000.0,0.00021175,120]
[383569222,1756997766918,2000.0,0.00022934,120]
[383569223,1756997767107,2000.0,0.00020856,120]
[383569224,1756997767285,2000.0,0.00020971,120]
[383569225,1756997853901,569.46,0.00025915,120]
[383569226,1756997854122,569.46,0.00028507,120]
[383569227,1756997963395,6180.16539727,0.0003013,120]
[383569228,1756998010451,163.09,0.00010305,2]
[383569229,1756998027236,150.0,0.0002,2]
[383569231,1756998227453,182.57,0.00013699,2]
[383569233,1756998300341,250.0,0.00015,2]
[383569234,1756998301398,300.0,0.00017,2]
[383569235,1756998493352,500.0,0.00022142,120]
[383569236,1756998600428,161.0,0.000301,120]
[383569247,1756998632788,-300.0,0.00020041,2]
[383569248,1756998632798,-195.0,0.00020123,2]
[383569249,1756998632807,-175.47206184,0.00020139,2]
[383569250,1756998632817,-300.0,0.0002014,2]
[383569251,1756998632827,-500.0,0.0002014,2]
[383569252,1756998632837,-300.0,0.00020158,2]
[383569253,1756998632846,-494.58551972,0.00020177,2]
[383569267,1756998633212,-5.41448028,0.00020177,2]
[383569268,1756998633222,-182.57,0.00020187,2]
[383569270,1756998633231,-150.0,0.00020229,2]
[383569272,1756998633240,-300.0,0.00020271,2]
[383569274,1756998633250,-300.0,0.00020396,2]
[383569276,1756998633259,-2158.64,0.00020451,2]
[383569277,1756998633269,-35.62714553,0.00020492,2]
[383569278,1756998633280,-711.51882614,0.00020492,2]
[383569279,1756998633296,-452.85402833,0.00020492,2]
[383569280,1756998633306,-92.14597167,0.00020492,2]
[383569282,1756998638492,-337.51406277,0.00020122,2]
[383569283,1756998638504,-207.85402833,0.00020492,2]
[383569284,1756998638514,-666.0,0.00020493,3]
[383569289,1756998638752,-1173.01,0.00020493,2]
[383569291,1756998638761,-150.99,0.00020493,2]
[383569293,1756998638770,-7691.46333002,0.00020493,2]
[383569450,1756998640378,-258.77,0.00020493,2]
[383569455,1756998640420,-10054.55070859,0.00020493,2]
[383569457,1756998640432,-10826.83035002,0.00020493,2]
[383569459,1756998640443,-16488.84065,0.00020493,2]
[383569461,1756998640455,-10156.35496137,0.00020493,2]
[383569463,1756998640464,-3251.59,0.00020493,2]
[383569465,1756998640473,-544.59023292,0.000205,3]
[383569467,1756998640483,-174.73,0.00020662,2]
[383569469,1756998640492,-160.0,0.00020698,7]
[383569471,1756998640502,-2151.07,0.00020709,2]
[383569474,1756998640511,-569.46,0.00020732,2]
[383569476,1756998640521,-239.84119403,0.00020828,2]
[383569478,1756998640531,-201.42789141,0.00020828,2]
[383569480,1756998640540,-3010.21128815,0.0002084,2]
[383569481,1756998640549,-305.17,0.00020863,2]
[383569483,1756998640559,-696.394,0.00020863,2]
[383569485,1756998640569,-500.0,0.00020932,2]
[383569487,1756998640578,-151.0,0.00020987,2]
[383569489,1756998640588,-160.0,0.00020987,2]
[383569492,1756998640598,-202.64930097,0.00020987,2]
[383569494,1756998640608,-623.58710448,0.00020987,2]
[383569496,1756998640617,-322.6107,0.00020987,2]
[383569498,1756998640627,-178.49,0.00020999,2]
[383569500,1756998640636,-151.0,0.00021197,2]
[383569502,1756998640646,-382.0,0.000212,2]
[383569504,1756998640654,-151.0,0.00021204,2]
[383569506,1756998640663,-16258.6794613,0.00021233,2]
[383569507,1756998640672,-169.46,0.00021239,2]
[383569509,1756998640682,-2067.19,0.00021261,2]
[383569511,1756998640691,-924.0,0.00021261,2]
[383569513,1756998640701,-188.82,0.00021354,2]
[383569515,1756998640711,-151.0,0.00021535,2]
[383569517,1756998640720,-464.87631999,0.00021547,2]
[383569519,1756998640730,-3328.43471361,0.000217,7]
[383569521,1756998640739,-8099.36283177,0.00021757,2]
[383569524,1756998640755,-1238.39277069,0.00021757,2]
[383569527,1756998640777,-115.81439754,0.00021757,2]
[383569529,1756998640786,-200.0,0.00021758,2]
[383569531,1756998640796,-904.97937917,0.00021769,2]
[383569600,1756998643754,-1200.0,0.00021769,2]
[383569602,1756998643773,-1190.35862606,0.00021769,2]
[383569604,1756998643783,-244.72,0.0002177,2]
[383569606,1756998643792,-166.0,0.00021875,2]
[383569609,1756998643803,-1224.0,0.00021875,2]
[383569611,1756998643813,-166.0,0.00021875,2]
[383569613,1756998643823,-1224.0,0.00021875,2]
[383569615,1756998643832,-166.0,0.00021875,2]
[383569617,1756998643841,-285.95061456,0.00021875,2]
[383569619,1756998643853,-938.04938544,0.00021875,2]
[383569621,1756998643862,-170.8451904,0.00021875,2]
[383569623,1756998643872,-1224.0,0.00021875,2]
[383569624,1756998643881,-175.155,0.00021881,2]
[383569625,1756998643891,-1000.0,0.00021882,2]
[383569626,1756998643900,-5000.0,0.00021882,2]
[383569627,1756998643910,-153.71524591,0.00021882,2]
[383569628,1756998643919,-500.0,0.00021883,2]
[383569629,1756998643929,-300.0,0.00021883,2]
[383569630,1756998643938,-1531.23517825,0.00021883,2]
[383569655,1756998646854,-3671.47242175,0.00021883,2]
[383569656,1756998646864,-725.72757825,0.00021883,2]
[383569657,1756998646874,-274.27242175,0.00021883,2]
[383569658,1756998646883,-604.5,0.000219,2]
[383569659,1756998646892,-157.29379936,0.000219,2]
[383569661,1756998646901,-5000.0,0.00021918,2]
[383569663,1756998646910,-1224.0,0.00021926,2]
[383569665,1756998646920,-152.0,0.00021926,2]
[383569667,1756998646930,-152.0,0.00021926,2]
[383569669,1756998646940,-152.0,0.00021926,2]
[383569671,1756998646950,-152.0,0.00021926,2]
[383569673,1756998646959,-152.0,0.00021926,2]
[383569675,1756998646969,-152.0,0.00021926,2]
[383569677,1756998646980,-152.0,0.00021926,2]
[383569679,1756998646989,-152.0,0.00021926,2]
[383569681,1756998646998,-152.0,0.00021926,2]
[383569683,1756998647008,-152.0,0.00021926,2]